[Event "GrandPrix_29.05"]
[Site "Chess.com"]
[Date "2020.05.29"]
[Round "7"]
[White "Angry_Twin"]
[Black "MiroVlasenko"]
[Result "1/2-1/2"]
[WhiteElo "2540"]
[BlackElo "2612"]
[TimeControl "600+2"]
[EndTime "12:32:17 PDT"]
[Termination "Game drawn by repetition"]

1. e4 {[%clk 0:10:01.9]} 1... c5 {[%clk 0:10:00.5]} 2. Nf3 {[%clk 0:10:02.3]}
2... a6 {[%clk 0:10:01.5]} 3. g3 {[%clk 0:10:00.1]} 3... b5 {[%clk 0:09:55.5]}
4. Bg2 {[%clk 0:09:57.2]} 4... Bb7 {[%clk 0:09:56.4]} 5. d3 {[%clk 0:09:57.6]}
5... g6 {[%clk 0:09:51.1]} 6. O-O {[%clk 0:09:58.2]} 6... Bg7 {[%clk 0:09:51.7]}
7. Re1 {[%clk 0:09:56]} 7... Nc6 {[%clk 0:09:32.4]} 8. Nc3 {[%clk 0:09:51.7]}
8... d6 {[%clk 0:09:12.3]} 9. Bg5 {[%clk 0:09:51.2]} 9... b4 {[%clk 0:08:48.5]}
10. Na4 {[%clk 0:09:12.4]} 10... h6 {[%clk 0:08:34.7]} 11. Be3 {[%clk
0:09:12.3]} 11... e5 {[%clk 0:08:17]} 12. c3 {[%clk 0:09:05.2]} 12... Nf6 {[%clk
0:08:07.2]} 13. d4 {[%clk 0:09:00.8]} 13... cxd4 {[%clk 0:07:50.1]} 14. cxd4
{[%clk 0:09:02.7]} 14... Ng4 {[%clk 0:07:50.6]} 15. d5 {[%clk 0:08:27.2]} 15...
Nxe3 {[%clk 0:07:40.4]} 16. Rxe3 {[%clk 0:08:29.1]} 16... Ne7 {[%clk 0:07:33.1]}
17. Qb3 {[%clk 0:07:41.6]} 17... a5 {[%clk 0:07:32.3]} 18. a3 {[%clk 0:07:42.3]}
18... f5 {[%clk 0:07:19.5]} 19. Nd2 {[%clk 0:07:32.9]} 19... f4 {[%clk
0:06:27.2]} 20. Ree1 {[%clk 0:07:31.5]} 20... Rb8 {[%clk 0:05:32]} 21. axb4
{[%clk 0:06:49.7]} 21... Ba6 {[%clk 0:05:29.4]} 22. Nc3 {[%clk 0:06:47.9]} 22...
Rxb4 {[%clk 0:05:09.6]} 23. Qa3 {[%clk 0:06:48.7]} 23... fxg3 {[%clk 0:04:42.9]}
24. hxg3 {[%clk 0:06:41.5]} 24... O-O {[%clk 0:04:31.3]} 25. Qxa5 {[%clk
0:06:28.3]} 25... Qxa5 {[%clk 0:03:33.2]} 26. Rxa5 {[%clk 0:06:30.2]} 26... Bd3
{[%clk 0:03:15.8]} 27. b3 {[%clk 0:05:36.9]} 27... Rc8 {[%clk 0:03:12.1]} 28.
Rc1 {[%clk 0:05:37.2]} 28... h5 {[%clk 0:03:02.7]} 29. Na2 {[%clk 0:05:38.1]}
29... Rbb8 {[%clk 0:02:41.1]} 30. Rxc8+ {[%clk 0:04:09.8]} 30... Nxc8 {[%clk
0:02:43]} 31. Bf1 {[%clk 0:04:03.6]} 31... Bc2 {[%clk 0:02:03.7]} 32. Ra6 {[%clk
0:00:12.5]} 32... Bh6 {[%clk 0:01:58.5]} 33. Rc6 {[%clk 0:00:07.5]} 33... Bd1
{[%clk 0:01:38.7]} 34. Nc4 {[%clk 0:00:08.1]} 34... Bxb3 {[%clk 0:01:32]} 35.
Nc3 {[%clk 0:00:09.4]} 35... Bf8 {[%clk 0:01:06.6]} 36. Na5 {[%clk 0:00:09.4]}
36... Bc2 {[%clk 0:00:58.7]} 37. Rc7 {[%clk 0:00:10.4]} 37... Nb6 {[%clk
0:00:52.4]} 38. Nc6 {[%clk 0:00:11.4]} 38... Ra8 {[%clk 0:00:53.2]} 39. Rb7
{[%clk 0:00:10.9]} 39... Na4 {[%clk 0:00:52.7]} 40. Nxa4 {[%clk 0:00:07.5]}
40... Bxa4 {[%clk 0:00:52.8]} 41. Bh3 {[%clk 0:00:07.9]} 41... Bc2 {[%clk
0:00:51.2]} 42. Be6+ {[%clk 0:00:08.8]} 42... Kh8 {[%clk 0:00:52.6]} 43. f3
{[%clk 0:00:10.2]} 43... Bh6 {[%clk 0:00:51.7]} 44. Kf2 {[%clk 0:00:11.4]} 44...
Ra2 {[%clk 0:00:51.6]} 45. Rb8+ {[%clk 0:00:12.7]} 45... Kh7 {[%clk 0:00:51.6]}
46. Rb7+ {[%clk 0:00:13.9]} 46... Kh8 {[%clk 0:00:53]} 47. Rb8+ {[%clk
0:00:09.1]} 47... Kh7 {[%clk 0:00:54.3]} 48. Rb7+ {[%clk 0:00:10.7]} 48... Kh8
{[%clk 0:00:55.6]} 1/2-1/2

[Event "GrandPrix_29.05"]
[Site "Chess.com"]
[Date "2020.05.29"]
[Round "7"]
[White "Fandorine"]
[Black "NikolaN98"]
[Result "1-0"]
[WhiteElo "2472"]
[BlackElo "2218"]
[TimeControl "600+2"]
[EndTime "12:32:18 PDT"]
[Termination "Fandorine won by checkmate"]

1. e4 {[%clk 0:10:01.9]} 1... c5 {[%clk 0:09:58.1]} 2. Nf3 {[%clk 0:10:01.1]}
2... d6 {[%clk 0:09:56.9]} 3. c3 {[%clk 0:09:59.4]} 3... Nf6 {[%clk 0:09:55.6]}
4. g3 {[%clk 0:10:00.4]} 4... Nbd7 {[%clk 0:09:38.1]} 5. d3 {[%clk 0:09:56.7]}
5... b6 {[%clk 0:09:37.6]} 6. Bg2 {[%clk 0:09:57.7]} 6... Bb7 {[%clk 0:09:38.7]}
7. Nbd2 {[%clk 0:09:57.5]} 7... e6 {[%clk 0:09:05.6]} 8. O-O {[%clk 0:09:58]}
8... Be7 {[%clk 0:08:58.4]} 9. Re1 {[%clk 0:09:58.8]} 9... Ne5 {[%clk
0:08:01.1]} 10. Nxe5 {[%clk 0:09:55.1]} 10... dxe5 {[%clk 0:08:01.7]} 11. Nc4
{[%clk 0:09:55.3]} 11... Nd7 {[%clk 0:07:45.6]} 12. a4 {[%clk 0:09:56.2]} 12...
O-O {[%clk 0:07:23.2]} 13. Qb3 {[%clk 0:09:48.9]} 13... Ba6 {[%clk 0:07:11.2]}
14. Be3 {[%clk 0:09:47.9]} 14... Qc7 {[%clk 0:07:00]} 15. h4 {[%clk 0:09:46.5]}
15... Rad8 {[%clk 0:06:57.3]} 16. h5 {[%clk 0:09:47.5]} 16... h6 {[%clk
0:06:52.7]} 17. Bf3 {[%clk 0:09:47.8]} 17... Nb8 {[%clk 0:06:47.9]} 18. Rad1
{[%clk 0:09:32.6]} 18... Nc6 {[%clk 0:06:44.6]} 19. Be2 {[%clk 0:09:14.6]} 19...
Bg5 {[%clk 0:06:23.3]} 20. Bxg5 {[%clk 0:09:04.5]} 20... hxg5 {[%clk 0:06:23.8]}
21. Ne3 {[%clk 0:09:02.2]} 21... Kh7 {[%clk 0:06:07.2]} 22. Bf1 {[%clk
0:08:53.9]} 22... Rd6 {[%clk 0:05:59.6]} 23. Rd2 {[%clk 0:08:49.8]} 23... Rfd8
{[%clk 0:05:42.1]} 24. Red1 {[%clk 0:08:43.3]} 24... Na5 {[%clk 0:05:37.3]} 25.
Qc2 {[%clk 0:08:43.2]} 25... Qd7 {[%clk 0:05:38.1]} 26. b3 {[%clk 0:07:47.6]}
26... Qe8 {[%clk 0:05:20.2]} 27. Ng4 {[%clk 0:05:54.3]} 27... f6 {[%clk
0:05:09.6]} 28. h6 {[%clk 0:05:51.5]} 28... Bb7 {[%clk 0:03:40.5]} 29. hxg7
{[%clk 0:04:33.1]} 29... Kxg7 {[%clk 0:03:38]} 30. f4 {[%clk 0:04:33.5]} 30...
exf4 {[%clk 0:03:12]} 31. gxf4 {[%clk 0:04:34.1]} 31... Qh5 {[%clk 0:03:05]} 32.
Be2 {[%clk 0:03:33.5]} 32... Rh8 {[%clk 0:02:58.1]} 33. Bf3 {[%clk 0:03:34.2]}
33... Qh3 {[%clk 0:02:15.9]} 34. Rf1 {[%clk 0:03:23.3]} 34... Rdd8 {[%clk
0:00:58.8]} 35. Rh2 {[%clk 0:02:54.7]} 35... Qg3+ {[%clk 0:00:59.5]} 36. Rg2
{[%clk 0:02:55.9]} 36... Qh3 {[%clk 0:00:59.3]} 37. fxg5 {[%clk 0:02:47.9]}
37... f5 {[%clk 0:00:49]} 38. Nh6 {[%clk 0:02:27.4]} 38... Rdf8 {[%clk
0:00:45.2]} 39. Qe2 {[%clk 0:02:12.1]} 39... fxe4 {[%clk 0:00:23]} 40. dxe4
{[%clk 0:02:14]} 40... Nxb3 {[%clk 0:00:20.6]} 41. Qd1 {[%clk 0:02:14.7]} 41...
Na5 {[%clk 0:00:14.3]} 42. Qd7+ {[%clk 0:01:47.6]} 42... Kg6 {[%clk 0:00:15.3]}
43. Rff2 {[%clk 0:00:53.3]} 43... Rxf3 {[%clk 0:00:10.9]} 44. Rxf3 {[%clk
0:00:52]} 44... Qxf3 {[%clk 0:00:12.8]} 45. Qxe6+ {[%clk 0:00:53.4]} 45... Kg7
{[%clk 0:00:12.4]} 46. Nf5+ {[%clk 0:00:53.8]} 46... Kh7 {[%clk 0:00:06.4]} 47.
Qf7# {[%clk 0:00:53.3]} 1-0

[Event "GrandPrix_29.05"]
[Site "Chess.com"]
[Date "2020.05.29"]
[Round "7"]
[White "DenisQ"]
[Black "Kopytkin"]
[Result "1-0"]
[WhiteElo "2161"]
[BlackElo "2134"]
[TimeControl "600+2"]
[EndTime "12:32:18 PDT"]
[Termination "DenisQ won on time"]

1. Nf3 {[%clk 0:10:01.9]} 1... d5 {[%clk 0:09:54.5]} 2. c4 {[%clk 0:10:01]} 2...
c6 {[%clk 0:09:54.9]} 3. cxd5 {[%clk 0:09:59.5]} 3... cxd5 {[%clk 0:09:55.7]} 4.
d4 {[%clk 0:10:00.6]} 4... Nc6 {[%clk 0:09:56.8]} 5. Nc3 {[%clk 0:09:58.3]} 5...
Nf6 {[%clk 0:09:58.2]} 6. Bf4 {[%clk 0:09:58.7]} 6... a6 {[%clk 0:09:58.3]} 7.
Rc1 {[%clk 0:09:57.6]} 7... Bf5 {[%clk 0:09:56.8]} 8. e3 {[%clk 0:09:56.2]} 8...
e6 {[%clk 0:09:55.9]} 9. Be2 {[%clk 0:09:20.2]} 9... Bd6 {[%clk 0:09:54.8]} 10.
Bxd6 {[%clk 0:08:16]} 10... Qxd6 {[%clk 0:09:56.7]} 11. O-O {[%clk 0:08:15.9]}
11... O-O {[%clk 0:09:25.3]} 12. Na4 {[%clk 0:08:14.3]} 12... Nd7 {[%clk
0:08:30.7]} 13. Qd2 {[%clk 0:07:49]} 13... Rac8 {[%clk 0:07:51.4]} 14. a3 {[%clk
0:07:43.2]} 14... Ncb8 {[%clk 0:06:51.6]} 15. b4 {[%clk 0:07:07.9]} 15... b6
{[%clk 0:06:27]} 16. Rc3 {[%clk 0:05:45.3]} 16... b5 {[%clk 0:04:23]} 17. Nc5
{[%clk 0:05:24.3]} 17... Nb6 {[%clk 0:04:21.9]} 18. Qa2 {[%clk 0:04:31.9]} 18...
Bg4 {[%clk 0:02:48.5]} 19. Rb1 {[%clk 0:03:37.3]} 19... Bxf3 {[%clk 0:02:31.4]}
20. Bxf3 {[%clk 0:03:37.5]} 20... N8d7 {[%clk 0:02:30.9]} 21. g3 {[%clk
0:02:41.6]} 21... g6 {[%clk 0:02:29.3]} 22. Kg2 {[%clk 0:02:37.4]} 22... Rc6
{[%clk 0:02:05.4]} 23. e4 {[%clk 0:02:02.9]} 23... Rfc8 {[%clk 0:01:59.2]} 24.
exd5 {[%clk 0:01:54.8]} 24... Nxd5 {[%clk 0:01:55.4]} 25. Bxd5 {[%clk
0:01:54.8]} 25... exd5 {[%clk 0:01:19.4]} 26. Re3 {[%clk 0:01:54.2]} 26... Nf6
{[%clk 0:00:44.4]} 27. Rbe1 {[%clk 0:01:51.6]} 27... R6c7 {[%clk 0:00:33.3]} 28.
Qe2 {[%clk 0:01:45.3]} 28... Kg7 {[%clk 0:00:34.2]} 29. Qf3 {[%clk 0:01:25]}
29... Ra8 {[%clk 0:00:31.8]} 30. g4 {[%clk 0:00:56]} 30... h6 {[%clk 0:00:32]}
31. h4 {[%clk 0:00:53.8]} 31... g5 {[%clk 0:00:07.5]} 32. hxg5 {[%clk
0:00:43.5]} 32... hxg5 {[%clk 0:00:09.4]} 33. Re5 {[%clk 0:00:42.9]} 33... Rh8
{[%clk 0:00:07.3]} 34. Rxg5+ {[%clk 0:00:40.7]} 34... Kf8 {[%clk 0:00:08.5]} 35.
Ne6+ {[%clk 0:00:35.5]} 35... Ke8 {[%clk 0:00:03]} 36. Nxc7+ {[%clk 0:00:33]}
36... Kd7 {[%clk 0:00:04.5]} 37. Nxd5 {[%clk 0:00:21.1]} 37... Qh2+ {[%clk
0:00:02.5]} 38. Kf1 {[%clk 0:00:21.6]} 38... Qh1+ {[%clk 0:00:03.2]} 39. Qxh1
{[%clk 0:00:21.8]} 39... Rxh1+ {[%clk 0:00:03.6]} 40. Ke2 {[%clk 0:00:23.4]} 1-0

[Event "GrandPrix_29.05"]
[Site "Chess.com"]
[Date "2020.05.29"]
[Round "7"]
[White "Olga_Girya"]
[Black "Sergey_Krivenko"]
[Result "1-0"]
[WhiteElo "2220"]
[BlackElo "2079"]
[TimeControl "600+2"]
[EndTime "12:32:27 PDT"]
[Termination "Olga_Girya won by resignation"]

1. d4 {[%clk 0:10:01.9]} 1... d5 {[%clk 0:10:00.4]} 2. c4 {[%clk 0:10:01.2]}
2... c6 {[%clk 0:10:01.3]} 3. Nf3 {[%clk 0:10:01.2]} 3... Nf6 {[%clk 0:10:00.8]}
4. e3 {[%clk 0:09:52.5]} 4... a6 {[%clk 0:09:51.3]} 5. Nc3 {[%clk 0:09:49.6]}
5... Bf5 {[%clk 0:09:36.5]} 6. cxd5 {[%clk 0:09:45.1]} 6... cxd5 {[%clk
0:09:36.2]} 7. Ne5 {[%clk 0:09:45.8]} 7... Nc6 {[%clk 0:08:37]} 8. Nxc6 {[%clk
0:09:13.2]} 8... bxc6 {[%clk 0:08:38.9]} 9. Bd2 {[%clk 0:09:13.5]} 9... e6
{[%clk 0:08:10.2]} 10. Rc1 {[%clk 0:08:55.1]} 10... Bb4 {[%clk 0:06:23.9]} 11.
Qa4 {[%clk 0:07:19.6]} 11... Qb6 {[%clk 0:05:36.2]} 12. a3 {[%clk 0:07:09]}
12... Bxc3 {[%clk 0:04:43.4]} 13. Bxc3 {[%clk 0:07:08.8]} 13... O-O {[%clk
0:04:40.4]} 14. Qa5 {[%clk 0:06:26.1]} 14... Qb3 {[%clk 0:04:10.6]} 15. f3
{[%clk 0:05:09.5]} 15... Nd7 {[%clk 0:03:20.5]} 16. Be2 {[%clk 0:04:34.6]} 16...
Nb6 {[%clk 0:02:06.1]} 17. Bd1 {[%clk 0:04:03.5]} 17... Qb5 {[%clk 0:01:58.1]}
18. Qxb5 {[%clk 0:04:00.9]} 18... cxb5 {[%clk 0:02:00]} 19. b3 {[%clk
0:01:41.5]} 19... Rfc8 {[%clk 0:01:50.6]} 20. Be2 {[%clk 0:01:32.9]} 20... Rc6
{[%clk 0:01:46]} 21. g4 {[%clk 0:00:43.1]} 21... Bg6 {[%clk 0:01:45.2]} 22. Kd2
{[%clk 0:00:31.5]} 22... Rac8 {[%clk 0:01:43.5]} 23. h4 {[%clk 0:00:31.3]} 23...
h6 {[%clk 0:01:43]} 24. Rhe1 {[%clk 0:00:27.8]} 24... f6 {[%clk 0:01:37.4]} 25.
h5 {[%clk 0:00:27.5]} 25... Bh7 {[%clk 0:01:37.1]} 26. Bf1 {[%clk 0:00:27.5]}
26... Kf7 {[%clk 0:01:36.3]} 27. Bg2 {[%clk 0:00:27.1]} 27... Ke8 {[%clk
0:01:29.6]} 28. e4 {[%clk 0:00:28]} 28... Kd7 {[%clk 0:01:30.2]} 29. Bb2 {[%clk
0:00:26.8]} 29... Rxc1 {[%clk 0:01:23.7]} 30. Rxc1 {[%clk 0:00:27.9]} 30... Rxc1
{[%clk 0:01:23.5]} 31. Kxc1 {[%clk 0:00:28.9]} 31... Nc8 {[%clk 0:01:21.5]} 32.
Kd2 {[%clk 0:00:28.8]} 32... Nd6 {[%clk 0:01:16.1]} 33. Ke3 {[%clk 0:00:18.4]}
33... Nf7 {[%clk 0:01:10.3]} 34. Bc3 {[%clk 0:00:18.4]} 34... Nd8 {[%clk
0:01:02]} 35. Bb4 {[%clk 0:00:16.8]} 35... Ke8 {[%clk 0:00:57.7]} 36. exd5
{[%clk 0:00:16]} 36... exd5 {[%clk 0:00:57.8]} 37. f4 {[%clk 0:00:17.2]} 37...
Bg8 {[%clk 0:00:57.3]} 38. Bc5 {[%clk 0:00:18.6]} 38... Be6 {[%clk 0:00:50.5]}
39. Bf3 {[%clk 0:00:18.9]} 39... Nc6 {[%clk 0:00:44.9]} 40. Kd3 {[%clk
0:00:19.9]} 40... Ne7 {[%clk 0:00:42.8]} 41. Kc3 {[%clk 0:00:17.3]} 41... Nc6
{[%clk 0:00:42.2]} 42. Bd6 {[%clk 0:00:18.2]} 42... Kd7 {[%clk 0:00:40.6]} 43.
Bf8 {[%clk 0:00:18.4]} 43... Nd8 {[%clk 0:00:35.7]} 44. Bxg7 {[%clk 0:00:18.6]}
44... Ke7 {[%clk 0:00:37.2]} 45. Bxh6 {[%clk 0:00:19.3]} 45... Kf7 {[%clk
0:00:31.6]} 46. f5 {[%clk 0:00:19.1]} 1-0

[Event "GrandPrix_29.05"]
[Site "Chess.com"]
[Date "2020.05.29"]
[Round "7"]
[White "dzhumagaliev"]
[Black "eristeski7"]
[Result "0-1"]
[WhiteElo "2117"]
[BlackElo "2137"]
[TimeControl "600+2"]
[EndTime "12:32:30 PDT"]
[Termination "eristeski7 won - game abandoned"]

1. Nf3 {[%clk 0:10:01.9]} 1... Nf6 {[%clk 0:10:00.3]} 2. d4 {[%clk 0:10:03.8]}
2... g6 {[%clk 0:10:01]} 3. c4 {[%clk 0:10:05.7]} 3... Bg7 {[%clk 0:10:02.2]} 4.
Nc3 {[%clk 0:10:07.3]} 4... O-O {[%clk 0:10:02.8]} 5. e4 {[%clk 0:10:07.9]} 5...
d6 {[%clk 0:10:03.9]} 6. Be2 {[%clk 0:10:09.3]} 6... Na6 {[%clk 0:10:03.3]} 7.
O-O {[%clk 0:10:11.2]} 7... e5 {[%clk 0:10:04.1]} 8. Bg5 {[%clk 0:10:11.4]} 8...
h6 {[%clk 0:10:04.1]} 9. Bh4 {[%clk 0:10:12.3]} 9... g5 {[%clk 0:09:46.3]} 10.
Bg3 {[%clk 0:10:12.5]} 10... Nh5 {[%clk 0:09:47]} 11. d5 {[%clk 0:09:40.2]}
11... Nf4 {[%clk 0:09:36.7]} 12. Nd2 {[%clk 0:09:37.7]} 12... f5 {[%clk
0:09:30.1]} 13. exf5 {[%clk 0:09:37.7]} 13... Bxf5 {[%clk 0:09:32]} 14. Bg4
{[%clk 0:09:35.8]} 14... Bd3 {[%clk 0:09:14.9]} 15. Re1 {[%clk 0:09:34.6]} 15...
Nb4 {[%clk 0:08:37.6]} 16. Bxf4 {[%clk 0:09:18.2]} 16... exf4 {[%clk 0:08:10.9]}
17. Be6+ {[%clk 0:09:08.9]} 17... Kh8 {[%clk 0:08:10]} 18. Nde4 {[%clk
0:09:10.3]} 18... Bxc4 {[%clk 0:07:52.2]} 19. Qa4 {[%clk 0:08:27.6]} 19... a5
{[%clk 0:07:26.8]} 20. a3 {[%clk 0:08:27.9]} 20... b5 {[%clk 0:07:24.5]} 21. Qd1
{[%clk 0:08:28.8]} 21... Nd3 {[%clk 0:07:05.1]} 22. b3 {[%clk 0:07:41.5]} 22...
Nxe1 {[%clk 0:06:56.7]} 23. bxc4 {[%clk 0:07:42.6]} 23... b4 {[%clk 0:06:49.6]}
24. Nb5 {[%clk 0:07:40.6]} 24... Nc2 {[%clk 0:06:32.8]} 25. Ra2 {[%clk
0:06:52.3]} 25... Nxa3 {[%clk 0:05:15.5]} 26. Nxa3 {[%clk 0:06:51.9]} 26... bxa3
{[%clk 0:05:17.4]} 27. Rxa3 {[%clk 0:06:53.8]} 27... f3 {[%clk 0:05:06.7]} 28.
gxf3 {[%clk 0:06:32.1]} 28... Qb8 {[%clk 0:04:51.8]} 29. h4 {[%clk 0:06:05.9]}
29... Qb2 {[%clk 0:04:46.1]} 30. Rb3 {[%clk 0:05:52.7]} 30... Qe5 {[%clk
0:04:43.6]} 31. hxg5 {[%clk 0:05:52.1]} 31... hxg5 {[%clk 0:04:39.8]} 32. Kg2
{[%clk 0:05:50.6]} 32... Rf4 {[%clk 0:04:38.2]} 33. Qb1 {[%clk 0:05:33.8]} 33...
a4 {[%clk 0:03:09.3]} 34. Rb8+ {[%clk 0:04:51.2]} 34... Rxb8 {[%clk 0:03:09]}
35. Qxb8+ {[%clk 0:04:53.1]} 35... Kh7 {[%clk 0:03:10.7]} 36. Qb1 {[%clk
0:04:12]} 36... Kh6 {[%clk 0:02:56.7]} 37. Ng3 {[%clk 0:04:02.9]} 37... a3
{[%clk 0:02:37.5]} 38. Nf5+ {[%clk 0:04:01.3]} 38... Rxf5 {[%clk 0:02:33.9]} 39.
Bxf5 {[%clk 0:04:03.2]} 39... Qf4 {[%clk 0:02:30.4]} 40. Bh7 {[%clk 0:03:56.4]}
40... Qf7 {[%clk 0:02:18.2]} 41. Be4 {[%clk 0:03:38.6]} 41... Bb2 {[%clk
0:02:03.5]} 42. Qc2 {[%clk 0:03:18.2]} 42... Qf4 {[%clk 0:01:38.8]} 43. Bh7
{[%clk 0:02:43]} 43... Qf6 {[%clk 0:01:31.6]} 44. c5 {[%clk 0:01:54.3]} 44... a2
{[%clk 0:01:27.5]} 45. Bg8 {[%clk 0:01:53.8]} 45... Qg7 {[%clk 0:01:17]} 46.
cxd6 {[%clk 0:01:46.9]} 46... cxd6 {[%clk 0:01:12]} 47. Qc8 {[%clk 0:01:27.6]}
47... a1=Q {[%clk 0:01:06.3]} 48. Qe6+ {[%clk 0:01:10.4]} 48... Qg6 {[%clk
0:00:55.5]} 49. Qh3+ {[%clk 0:00:59.5]} 49... Qh5 {[%clk 0:00:52.1]} 50. Qe6+
{[%clk 0:00:53.8]} 50... Bf6 {[%clk 0:00:49.5]} 0-1

[Event "GrandPrix_29.05"]
[Site "Chess.com"]
[Date "2020.05.29"]
[Round "7"]
[White "Forking_U"]
[Black "DaVinci81"]
[Result "0-1"]
[WhiteElo "2238"]
[BlackElo "2478"]
[TimeControl "600+2"]
[EndTime "12:32:32 PDT"]
[Termination "DaVinci81 won on time"]

1. e4 {[%clk 0:09:59.8]} 1... e5 {[%clk 0:09:59.5]} 2. Nf3 {[%clk 0:09:57]} 2...
Nc6 {[%clk 0:10:00.5]} 3. d4 {[%clk 0:09:51.5]} 3... exd4 {[%clk 0:09:58]} 4.
Nxd4 {[%clk 0:09:53.4]} 4... Nf6 {[%clk 0:09:58.2]} 5. Nxc6 {[%clk 0:09:49]}
5... bxc6 {[%clk 0:09:56.5]} 6. e5 {[%clk 0:09:50.4]} 6... Qe7 {[%clk
0:09:56.4]} 7. Qe2 {[%clk 0:09:50.6]} 7... Nd5 {[%clk 0:09:58]} 8. c4 {[%clk
0:09:52.1]} 8... Nb6 {[%clk 0:09:59]} 9. Nc3 {[%clk 0:09:52.6]} 9... Qe6 {[%clk
0:09:58.5]} 10. Bd2 {[%clk 0:09:51.9]} 10... Bb4 {[%clk 0:09:17.9]} 11. Qe4
{[%clk 0:08:35.9]} 11... a5 {[%clk 0:08:26.5]} 12. Bd3 {[%clk 0:06:41.5]} 12...
d5 {[%clk 0:06:15.7]} 13. exd6 {[%clk 0:06:39.9]} 13... cxd6 {[%clk 0:05:48.7]}
14. O-O-O {[%clk 0:06:28.7]} 14... Qxe4 {[%clk 0:05:16.7]} 15. Nxe4 {[%clk
0:03:58.2]} 15... d5 {[%clk 0:05:02.5]} 16. cxd5 {[%clk 0:03:58]} 16... cxd5
{[%clk 0:05:01.6]} 17. Nc3 {[%clk 0:02:35.2]} 17... Be6 {[%clk 0:04:55.3]} 18.
Be3 {[%clk 0:02:34.8]} 18... Bxc3 {[%clk 0:04:03.4]} 19. bxc3 {[%clk 0:02:27.4]}
19... Nd7 {[%clk 0:03:48.4]} 20. Bb5 {[%clk 0:02:15.1]} 20... Ke7 {[%clk
0:03:40.4]} 21. c4 {[%clk 0:01:54.4]} 21... Rhc8 {[%clk 0:03:31.7]} 22. Kb2
{[%clk 0:01:14.1]} 22... Rab8 {[%clk 0:02:51.4]} 23. a4 {[%clk 0:01:11.4]} 23...
Nb6 {[%clk 0:02:34.9]} 24. Bxb6 {[%clk 0:01:03.9]} 24... Rxb6 {[%clk 0:02:35.5]}
25. cxd5 {[%clk 0:01:05.5]} 25... Bd7 {[%clk 0:02:31.9]} 26. d6+ {[%clk
0:01:01.1]} 26... Kf6 {[%clk 0:02:32.7]} 27. Rd5 {[%clk 0:00:57.1]} 27... Rcb8
{[%clk 0:02:30.4]} 28. Kc3 {[%clk 0:00:31.1]} 28... Bxb5 {[%clk 0:02:28.2]} 29.
axb5 {[%clk 0:00:33]} 29... Rxb5 {[%clk 0:02:29.5]} 30. Rxb5 {[%clk 0:00:32.5]}
30... Rxb5 {[%clk 0:02:30.4]} 31. Kc4 {[%clk 0:00:32.1]} 31... Rb8 {[%clk
0:01:42.7]} 32. Kd5 {[%clk 0:00:33.2]} 32... Rb2 {[%clk 0:01:40.4]} 33. Rd1
{[%clk 0:00:32.5]} 33... a4 {[%clk 0:01:29.9]} 34. d7 {[%clk 0:00:25.5]} 34...
Ke7 {[%clk 0:01:28.1]} 35. Kc6 {[%clk 0:00:13.3]} 35... Kd8 {[%clk 0:01:03.9]}
36. Rd4 {[%clk 0:00:13]} 36... Rxf2 {[%clk 0:00:51.8]} 37. Rxa4 {[%clk 0:00:06]}
37... Rf6+ {[%clk 0:00:52.7]} 38. Kd5 {[%clk 0:00:06.6]} 38... Rg6 {[%clk
0:00:53.6]} 39. g4 {[%clk 0:00:04.7]} 39... Kxd7 {[%clk 0:00:54]} 40. Ra7+
{[%clk 0:00:04.9]} 40... Ke8 {[%clk 0:00:55.2]} 41. h3 {[%clk 0:00:03.3]} 41...
Re6 {[%clk 0:00:53.4]} 42. Rb7 {[%clk 0:00:02.5]} 42... h6 {[%clk 0:00:53.3]}
43. Kd4 {[%clk 0:00:03.1]} 43... Kf8 {[%clk 0:00:53.1]} 44. Rb5 {[%clk
0:00:02.9]} 44... g6 {[%clk 0:00:53.9]} 45. Rc5 {[%clk 0:00:02.8]} 45... Kg7
{[%clk 0:00:55]} 46. Rb5 {[%clk 0:00:03.4]} 46... Kf6 {[%clk 0:00:56.2]} 47. Rc5
{[%clk 0:00:04.3]} 47... Re1 {[%clk 0:00:56.8]} 48. Ra5 {[%clk 0:00:03.6]} 48...
Rh1 {[%clk 0:00:57.4]} 49. Ra3 {[%clk 0:00:02.5]} 49... Kg5 {[%clk 0:00:58.1]}
50. Rf3 {[%clk 0:00:02.4]} 50... Kh4 {[%clk 0:00:55.2]} 0-1

[Event "GrandPrix_29.05"]
[Site "Chess.com"]
[Date "2020.05.29"]
[Round "7"]
[White "woodhy"]
[Black "ploky25"]
[Result "1-0"]
[WhiteElo "2100"]
[BlackElo "2075"]
[TimeControl "600+2"]
[EndTime "12:32:34 PDT"]
[Termination "woodhy won on time"]

1. e4 {[%clk 0:10:01.9]} 1... c5 {[%clk 0:09:59.5]} 2. Nf3 {[%clk 0:10:00.9]}
2... e6 {[%clk 0:09:59.7]} 3. d4 {[%clk 0:10:01.4]} 3... cxd4 {[%clk 0:09:59.9]}
4. Nxd4 {[%clk 0:10:03.3]} 4... Nc6 {[%clk 0:10:00.2]} 5. Nc3 {[%clk 0:09:50.7]}
5... Qc7 {[%clk 0:09:59.7]} 6. Be3 {[%clk 0:09:33.1]} 6... a6 {[%clk 0:09:59.1]}
7. Be2 {[%clk 0:09:26.7]} 7... Nf6 {[%clk 0:09:56.1]} 8. O-O {[%clk 0:09:26.2]}
8... Be7 {[%clk 0:09:54.8]} 9. Kh1 {[%clk 0:08:50]} 9... O-O {[%clk 0:09:49.9]}
10. f4 {[%clk 0:08:48.1]} 10... d6 {[%clk 0:09:49.4]} 11. Rf3 {[%clk 0:08:28.3]}
11... Bd7 {[%clk 0:09:31.1]} 12. Rg3 {[%clk 0:08:06.5]} 12... b5 {[%clk
0:09:09.8]} 13. a3 {[%clk 0:07:59.8]} 13... Na5 {[%clk 0:07:54.1]} 14. Bd3
{[%clk 0:07:18.8]} 14... Nc4 {[%clk 0:07:36.8]} 15. Bc1 {[%clk 0:07:17.7]} 15...
Rfe8 {[%clk 0:07:18.9]} 16. b3 {[%clk 0:07:08.3]} 16... Na5 {[%clk 0:07:05.3]}
17. Bb2 {[%clk 0:07:03]} 17... e5 {[%clk 0:06:43.9]} 18. fxe5 {[%clk 0:06:03.4]}
18... dxe5 {[%clk 0:06:42.8]} 19. Nf5 {[%clk 0:06:04.2]} 19... Bxf5 {[%clk
0:06:42]} 20. exf5 {[%clk 0:06:06.1]} 20... Nc6 {[%clk 0:06:07.5]} 21. Ne4
{[%clk 0:05:56.5]} 21... Nd4 {[%clk 0:06:02.7]} 22. Qf1 {[%clk 0:03:52.5]} 22...
Qc6 {[%clk 0:05:09.8]} 23. Re1 {[%clk 0:03:37.7]} 23... Rad8 {[%clk 0:04:44.6]}
24. Ng5 {[%clk 0:03:05.7]} 24... Nh5 {[%clk 0:04:03.1]} 25. Rh3 {[%clk
0:01:22.6]} 25... Bxg5 {[%clk 0:03:35.6]} 26. Rxh5 {[%clk 0:01:21.1]} 26... Bd2
{[%clk 0:02:21.2]} 27. Be4 {[%clk 0:00:42.6]} 27... Qc7 {[%clk 0:02:13.3]} 28.
Rd1 {[%clk 0:00:40.1]} 28... Nxc2 {[%clk 0:02:10.8]} 29. f6 {[%clk 0:00:39.3]}
29... g6 {[%clk 0:02:07.8]} 30. Qe2 {[%clk 0:00:24]} 30... Ne3 {[%clk
0:00:53.1]} 31. Rxh7 {[%clk 0:00:21.1]} 31... Nxd1 {[%clk 0:00:25.5]} 32. Rg7+
{[%clk 0:00:20.4]} 32... Kh8 {[%clk 0:00:24.6]} 33. Bxg6 {[%clk 0:00:20.1]}
33... Nf2+ {[%clk 0:00:14.7]} 34. Kg1 {[%clk 0:00:14.8]} 34... Bh6 {[%clk
0:00:08.9]} 35. Rxf7 {[%clk 0:00:15.5]} 35... Qc5 {[%clk 0:00:06.7]} 36. Rh7+
{[%clk 0:00:12.9]} 36... Kg8 {[%clk 0:00:07]} 37. f7+ {[%clk 0:00:13.7]} 37...
Kf8 {[%clk 0:00:08]} 38. fxe8=Q+ {[%clk 0:00:15.6]} 38... Rxe8 {[%clk
0:00:08.9]} 39. Rf7+ {[%clk 0:00:15.3]} 39... Kg8 {[%clk 0:00:09.1]} 40. Rxf2
{[%clk 0:00:16.9]} 40... Rf8 {[%clk 0:00:07.1]} 41. Kf1 {[%clk 0:00:17.4]} 41...
Rd8 {[%clk 0:00:03.1]} 42. Bd3 {[%clk 0:00:14.9]} 1-0